bitfinex/quotes_BTCUSD_20240731
["timestamp","ask_amount","ask_price","bid_price","bid_amount"]
[1722402406405,0.14716956,65757.0,65756.0,0.013913]
[1722402406834,0.06706956,65757.0,65756.0,0.013913]
[1722402407039,0.02194686,65757.0,65756.0,0.013913]
[1722402407218,0.01994686,65757.0,65756.0,0.013913]
[1722402407431,0.01994686,65757.0,65756.0,0.16599]
[1722402407884,0.01994686,65757.0,65756.0,0.013913]
[1722402408091,0.02194686,65757.0,65756.0,0.013913]
[1722402412427,0.02344139,65757.0,65756.0,0.013913]
[1722402412639,0.4094542,65757.0,65756.0,0.013913]
[1722402412861,0.73479974,65757.0,65756.0,0.013913]
[1722402413067,1.03894974,65757.0,65756.0,0.013913]
[1722402413486,0.73479974,65757.0,65756.0,0.013913]
[1722402413822,0.84762917,65757.0,65756.0,0.013913]
[1722402414248,0.73479974,65757.0,65756.0,0.013913]
[1722402415553,0.84762917,65757.0,65756.0,0.013913]
[1722402415985,0.8475756,65757.0,65756.0,0.013913]
[1722402416215,1.1517256,65757.0,65756.0,0.013913]
[1722402418957,0.8475756,65757.0,65756.0,0.013913]
[1722402419372,0.62356639,65757.0,65756.0,0.013913]
[1722402419583,0.84767087,65757.0,65756.0,0.013913]
[1722402419797,0.84767791,65757.0,65756.0,0.013913]
[1722402421445,0.32995291,65757.0,65756.0,0.013913]
[1722402421695,0.01994686,65757.0,65756.0,0.013913]
[1722402422564,0.02194686,65757.0,65756.0,0.013913]
[1722402423830,0.01994686,65757.0,65756.0,0.16599]
[1722402424036,0.01994686,65757.0,65756.0,0.013913]
[1722402424606,0.06776785,65762.0,65756.0,0.013913]
[1722402424607,0.04517856,65761.0,65760.0,0.152068]
[1722402424982,0.01994686,65761.0,65760.0,0.152067]
[1722402425399,0.01994686,65762.0,65761.0,0.152065]
[1722402426261,0.01994686,65762.0,65761.0,0.760327]
[1722402426475,0.00291301,65765.0,65758.0,0.0204]
[1722402426476,0.00091301,65765.0,65764.0,0.456175]
[1722402426652,0.02085987,65765.0,65764.0,0.152058]
[1722402427107,0.00091301,65765.0,65764.0,0.152058]
[1722402427487,0.00091301,65765.0,65764.0,0.456175]
[1722402427933,0.00091301,65765.0,65764.0,0.774292]
[1722402428352,0.00091301,65765.0,65764.0,0.760292]
[1722402428963,0.00091301,65765.0,65764.0,0.774292]
[1722402429175,0.00091301,65765.0,65764.0,1.31274204]
[1722402429382,0.00091301,65765.0,65764.0,1.41274204]
[1722402430220,0.00091301,65765.0,65764.0,1.39874204]
[1722402430628,0.00091301,65765.0,65764.0,1.41274204]
[1722402430835,0.00091301,65765.0,65764.0,1.70285904]
[1722402431046,0.00091301,65765.0,65764.0,1.41274204]
[1722402431268,0.00091301,65765.0,65764.0,1.42176929]
[1722402431482,0.00091301,65765.0,65764.0,1.40776929]
[1722402431696,0.00091301,65765.0,65764.0,1.42176929]
[1722402436920,0.04515446,65793.0,65789.0,0.0202]
[1722402437134,0.00994686,65791.0,65790.0,0.15063304]
[1722402437343,0.00994686,65791.0,65790.0,0.60662804]
[1722402437554,0.01994686,65798.0,65797.0,0.151982]
[1722402437767,0.01994686,65798.0,65795.0,0.151986]
[1722402437973,0.01994686,65798.0,65796.0,0.151983]
[1722402438176,0.01994686,65798.0,65793.0,0.303983]
[1722402438386,0.01994686,65798.0,65797.0,0.151982]
[1722402438603,0.01994686,65798.0,65797.0,0.455947]
[1722402438816,0.01994686,65798.0,65797.0,0.151982]
[1722402439443,0.01994686,65798.0,65797.0,0.455947]
[1722402439652,0.02094686,65798.0,65797.0,0.455947]
[1722402440474,0.02094686,65798.0,65797.0,0.151982]
[1722402440684,0.01994686,65796.0,65795.0,0.014]
[1722402440891,0.01994686,65796.0,65784.0,0.0614]
[1722402440892,0.01994686,65785.0,65784.0,0.0614]
[1722402441111,0.00994686,65785.0,65784.0,0.66807004]
[1722402441321,0.00994686,65788.0,65787.0,0.152005]
[1722402441536,0.02194686,65789.0,65788.0,0.456009]
[1722402441751,0.01994686,65794.0,65793.0,0.151991]
[1722402441965,0.002,65798.0,65793.0,0.151991]
[1722402441966,0.01994686,65798.0,65797.0,0.151982]
[1722402442169,0.0667,65801.0,65797.0,0.151982]
[1722402442170,0.08674686,65799.0,65798.0,0.15198]
[1722402442383,0.00994686,65799.0,65798.0,0.45594]
[1722402442765,0.01994686,65799.0,65798.0,0.15198]
[1722402442993,0.01994686,65800.0,65799.0,0.151977]
[1722402443216,0.01994686,65803.0,65802.0,0.151971]
[1722402443632,0.01994686,65801.0,65800.0,0.151973]
[1722402444061,0.02194686,65801.0,65800.0,0.151973]
[1722402444271,0.01994686,65801.0,65800.0,0.151973]
[1722402444484,0.01994686,65801.0,65800.0,0.455924]
[1722402444906,0.01994686,65801.0,65800.0,0.466924]
[1722402445695,0.02094686,65801.0,65800.0,0.480924]
[1722402446255,0.02094686,65801.0,65800.0,0.176973]
[1722402446462,0.02294686,65801.0,65800.0,0.025]
[1722402446683,0.10444686,65801.0,65800.0,0.025]
[1722402447720,0.16464686,65801.0,65800.0,0.025]
[1722402447926,0.66662471,65801.0,65800.0,0.025]
[1722402448130,0.62056586,65801.0,65800.0,0.025]
[1722402448345,1.2453449,65801.0,65800.0,0.025]
[1722402448570,1.65869218,65801.0,65800.0,0.025]
[1722402449195,1.65769218,65801.0,65800.0,0.011]
[1722402449525,1.35374618,65801.0,65800.0,0.011]
[1722402450170,0.01994686,65784.0,65783.0,0.152013]
[1722402451604,0.00994686,65791.0,65789.0,0.152001]
[1722402451798,0.01994686,65790.0,65789.0,0.152001]
[1722402452215,0.01994686,65790.0,65789.0,0.456003]
[1722402452381,0.01994686,65791.0,65790.0,0.455995]
[1722402453175,0.01994686,65791.0,65790.0,0.151998]
[1722402453500,0.01994686,65793.0,65792.0,0.455982]
[1722402454105,0.01994686,65794.0,65793.0,0.455974]
[1722402454342,0.0805,65797.0,65796.0,0.455953]
[1722402454343,0.0785,65797.0,65796.0,0.455953]
[1722402454536,0.01994686,65793.0,65792.0,0.37933416]
[1722402454749,0.01994686,65795.0,65794.0,0.455968]
[1722402455190,0.01994686,65793.0,65792.0,0.317987]
[1722402455520,0.02294686,65793.0,65792.0,0.178994]
[1722402455905,0.02194686,65793.0,65792.0,0.014]
[1722402456276,0.01994686,65785.0,65780.0,0.0638]
[1722402456486,0.01994686,65785.0,65784.0,0.456037]
[1722402456639,0.01994686,65785.0,65784.0,0.70667004]
[1722402457990,0.01994686,65785.0,65784.0,0.72067004]
[1722402458352,0.02094686,65785.0,65784.0,0.73367004]
[1722402458526,0.001,65785.0,65784.0,0.73367004]
[1722402458731,0.02094686,65785.0,65784.0,0.73367004]
[1722402458885,0.001,65785.0,65784.0,0.73367004]
[1722402459517,0.02094686,65785.0,65784.0,0.73367004]
[1722402459692,0.001,65785.0,65784.0,0.73367004]
[1722402460982,0.001,65785.0,65784.0,0.74267796]
[1722402461599,0.02094686,65785.0,65784.0,0.27763304]
[1722402461804,0.02294686,65785.0,65784.0,0.27763304]
[1722402462018,0.02294686,65785.0,65784.0,0.027]
[1722402462019,0.10394686,65785.0,65784.0,0.027]
[1722402462231,0.16624686,65785.0,65784.0,0.027]
[1722402463702,0.16529486,65785.0,65784.0,0.027]
[1722402465271,0.16329486,65785.0,65784.0,0.027]
[1722402465722,0.16529486,65785.0,65784.0,0.027]
[1722402466847,0.16329486,65785.0,65784.0,0.027]
[1722402467647,0.10099486,65785.0,65784.0,0.027]
[1722402468032,0.10299486,65785.0,65784.0,0.027]
[1722402468731,0.10099486,65785.0,65784.0,0.027]
[1722402469150,0.10099486,65785.0,65784.0,0.179012]
[1722402469347,0.10099486,65785.0,65784.0,0.027]
[1722402469930,0.10299486,65785.0,65784.0,0.027]
[1722402471858,0.00999486,65785.0,65784.0,0.1086]
[1722402472094,0.04515532,65799.0,65794.0,0.0204]
[1722402472259,0.04515532,65806.0,65805.0,0.151964]
[1722402472484,0.06510218,65810.0,65806.0,0.15196]
[1722402472661,0.01994686,65809.0,65804.0,0.365128]
[1722402472861,0.01994686,65809.0,65808.0,0.151957]
[1722402473072,0.01994686,65811.0,65810.0,0.455857]
[1722402473277,0.01994686,65811.0,65810.0,0.151952]
[1722402473657,0.01994686,65809.0,65808.0,0.151956]
[1722402473831,0.01994686,65809.0,65808.0,0.45587]
[1722402474035,0.01994686,65809.0,65808.0,0.46687]
[1722402474447,0.01994686,65810.0,65809.0,0.151954]
[1722402474589,0.01994686,65809.0,65808.0,0.011]
[1722402474969,0.01994686,65809.0,65808.0,0.162957]
[1722402475180,0.01994686,65809.0,65808.0,0.480871]
[1722402475934,0.01994686,65809.0,65808.0,0.469871]
[1722402476433,0.04519981,65816.0,65815.0,0.151941]
[1722402476630,0.06514667,65816.0,65815.0,0.455823]
[1722402476843,0.01994686,65816.0,65815.0,0.151941]
[1722402477050,0.01994686,65814.0,65813.0,0.151944]
[1722402477328,0.01994686,65814.0,65813.0,0.455835]
[1722402478328,0.02194686,65814.0,65813.0,0.455835]
[1722402478538,0.01994686,65814.0,65813.0,0.455835]
[1722402478946,0.01994686,65814.0,65813.0,0.469835]
[1722402479158,0.01994686,65814.0,65813.0,0.165944]
[1722402479369,0.01994686,65814.0,65813.0,0.179944]
[1722402479994,0.02194686,65814.0,65813.0,0.179944]
[1722402480199,0.02194686,65814.0,65813.0,0.165944]
[1722402480407,0.01994686,65814.0,65813.0,0.469835]
[1722402480632,0.01994686,65815.0,65814.0,0.455829]
[1722402481449,0.01591439,65815.0,65814.0,0.455829]
[1722402481654,0.01591439,65815.0,65814.0,0.151943]
[1722402481879,0.01591439,65815.0,65814.0,0.455829]
[1722402482637,0.01791439,65815.0,65814.0,0.455829]
[1722402483279,0.01791439,65815.0,65814.0,0.165943]
[1722402483484,0.01791439,65815.0,65814.0,0.178943]
[1722402483948,0.01791439,65815.0,65814.0,0.468829]
[1722402484168,0.08401439,65815.0,65814.0,0.027]
[1722402484381,1.4386586,65815.0,65814.0,0.027]
[1722402484590,1.23386404,65815.0,65814.0,0.027]
[1722402484800,1.38937686,65815.0,65814.0,0.027]
[1722402485004,1.25498703,65815.0,65814.0,0.027]
[1722402485423,0.01791439,65809.0,65808.0,0.0005]
[1722402485630,0.20969056,65809.0,65808.0,0.0005]
[1722402485836,0.42923892,65809.0,65808.0,0.0005]
[1722402486449,0.27728492,65809.0,65808.0,0.0005]
[1722402486656,0.43079312,65809.0,65808.0,0.0005]
[1722402486858,0.43079312,65809.0,65808.0,0.0125]
[1722402487238,0.27728492,65809.0,65808.0,0.0125]
[1722402487441,0.27883912,65809.0,65808.0,0.0265]
[1722402487644,0.27734459,65809.0,65808.0,0.0265]
[1722402487870,0.27579039,65809.0,65808.0,0.0265]
[1722402488210,0.42774439,65809.0,65808.0,0.0265]
[1722402489103,0.42774802,65809.0,65808.0,0.0265]
[1722402489484,0.42774179,65809.0,65808.0,0.0265]
[1722402489896,0.27578779,65809.0,65808.0,0.0265]
[1722402490048,0.27878242,65809.0,65808.0,0.0265]
[1722402490256,0.73464542,65809.0,65808.0,0.0265]
[1722402490482,0.92418092,65809.0,65808.0,0.0265]
[1722402491045,0.31636292,65809.0,65808.0,0.0265]
[1722402491903,0.16440892,65809.0,65808.0,0.0265]
[1722402492315,0.31636292,65809.0,65808.0,0.0265]
[1722402492566,0.16440892,65809.0,65808.0,0.0265]
[1722402493107,0.27727613,65809.0,65808.0,0.0265]
[1722402493389,0.37750304,65809.0,65808.0,0.0265]
[1722402493611,0.27728105,65809.0,65808.0,0.0265]
[1722402493835,0.5294571,65809.0,65808.0,0.0265]
[1722402494274,0.3775031,65809.0,65808.0,0.0265]
[1722402494474,0.52945303,65809.0,65808.0,0.0265]
[1722402494891,0.31636292,65809.0,65808.0,0.0265]
[1722402495122,0.52938246,65809.0,65808.0,0.0265]
[1722402495567,0.26456776,65809.0,65808.0,0.0265]
[1722402495787,0.37740251,65809.0,65808.0,0.0265]
[1722402496227,0.52935651,65809.0,65808.0,0.0265]
[1722402496646,0.37740251,65809.0,65808.0,0.0265]
[1722402497331,0.26453837,65809.0,65808.0,0.0265]
[1722402499142,0.26428559,65809.0,65808.0,0.0265]
[1722402499967,0.41623959,65809.0,65808.0,0.0265]
[1722402500808,0.26428559,65809.0,65808.0,0.0265]
[1722402501428,0.41623959,65809.0,65808.0,0.0265]
[1722402502215,0.72014859,65809.0,65808.0,0.0265]
[1722402502416,1.02389073,65809.0,65808.0,0.0265]
[1722402502871,0.62027192,65809.0,65808.0,0.0265]
[1722402502987,0.71979676,65809.0,65808.0,0.0265]
[1722402503626,0.26393376,65809.0,65808.0,0.0265]
[1722402503834,0.71979676,65809.0,65808.0,0.0265]
[1722402504654,0.62027192,65809.0,65808.0,0.0265]
[1722402504870,0.72028013,65809.0,65808.0,0.0265]
[1722402505512,0.62027192,65809.0,65808.0,0.0265]
[1722402505723,0.72035098,65809.0,65808.0,0.0265]
[1722402507660,1.02425998,65809.0,65808.0,0.0265]
[1722402508811,0.72035098,65809.0,65808.0,0.0265]
[1722402509024,0.72052686,65809.0,65808.0,0.0265]
[1722402511270,1.1850689,65809.0,65808.0,0.0265]
[1722402511525,1.33576322,65809.0,65808.0,0.0265]
[1722402511755,1.62169484,65809.0,65808.0,0.0265]
[1722402511992,1.79405486,65809.0,65808.0,0.0265]
[1722402512253,1.38872296,65809.0,65808.0,0.0265]
[1722402512512,1.62195098,65809.0,65808.0,0.0265]
[1722402512726,1.38872296,65809.0,65808.0,0.0265]
[1722402512942,1.77488025,65809.0,65808.0,0.0265]
[1722402514464,1.62243145,65809.0,65808.0,0.0265]
[1722402515494,1.62253811,65809.0,65808.0,0.0265]
[1722402516181,0.303945,65802.0,65788.0,0.0092036]
[1722402516392,0.01791439,65791.0,65790.0,0.151998]
[1722402517631,0.01905178,65791.0,65790.0,0.151998]
[1722402517861,0.01791439,65791.0,65790.0,0.151998]
[1722402518078,0.01922986,65791.0,65790.0,0.151998]
[1722402518284,0.01791439,65791.0,65790.0,0.151998]
[1722402518476,0.01923525,65791.0,65790.0,0.151998]
[1722402518692,0.01791439,65791.0,65790.0,0.151998]
[1722402519053,0.02046859,65791.0,65790.0,0.164998]
[1722402519432,0.01891439,65791.0,65790.0,0.164998]
[1722402519658,0.02046859,65791.0,65790.0,0.164998]
[1722402519833,0.01791439,65791.0,65790.0,0.151998]
[1722402520176,0.02046859,65791.0,65790.0,0.153998]
[1722402520350,0.01991439,65791.0,65790.0,0.002]
[1722402520562,0.01991439,65791.0,65790.0,0.153998]
[1722402520766,0.02046859,65791.0,65790.0,0.457995]
[1722402520972,0.01891439,65791.0,65790.0,0.457995]
[1722402521123,0.002,65791.0,65790.0,0.826992]
[1722402521325,0.002,65791.0,65790.0,1.30202204]
[1722402521528,0.002,65791.0,65790.0,1.30285204]
[1722402526270,0.002,65791.0,65790.0,1.30285204]
[1722402526641,0.002,65791.0,65790.0,1.40285204]
[1722402527279,0.002,65791.0,65790.0,1.48984644]
[1722402527501,0.002,65791.0,65790.0,1.79384344]
[1722402528321,0.002,65791.0,65790.0,1.70684904]
[1722402529551,0.002,65791.0,65790.0,1.40285204]
[1722402529723,0.0858649,65791.0,65790.0,1.07845504]
[1722402530068,0.02541755,65791.0,65790.0,1.07845504]
[1722402530487,0.01791439,65791.0,65790.0,1.01345504]
[1722402530699,0.10851507,65791.0,65790.0,1.01345504]
[1722402531419,0.01791439,65791.0,65790.0,1.01345504]
[1722402531795,0.10854412,65791.0,65790.0,1.01345504]
[1722402532201,0.01791439,65791.0,65790.0,1.01345504]
[1722402532404,0.002,65791.0,65790.0,1.01345504]
[1722402532582,0.04731701,65791.0,65790.0,1.01345504]
[1722402532781,0.0095071,65791.0,65790.0,1.01345504]
[1722402533048,0.0095071,65791.0,65790.0,1.31745204]
[1722402533894,0.002,65791.0,65790.0,1.31745204]
[1722402534278,0.0095071,65791.0,65790.0,1.31745204]
[1722402536384,0.002,65791.0,65790.0,1.31745204]
[1722402536973,0.00945634,65791.0,65790.0,1.31745204]
[1722402538782,0.00945634,65791.0,65790.0,1.01345504]
[1722402539162,0.00945634,65791.0,65790.0,1.31745204]
[1722402541842,0.002,65791.0,65790.0,1.31745204]
[1722402542041,0.00845634,65791.0,65790.0,1.31545204]
[1722402542253,0.00845634,65791.0,65790.0,1.32845204]
[1722402542428,0.00945634,65791.0,65790.0,1.33945204]
[1722402543149,0.001,65791.0,65790.0,1.33248451]
[1722402543431,0.002,65791.0,65790.0,1.64344904]
[1722402543658,0.001,65791.0,65790.0,1.32645204]
[1722402543835,0.04533737,65797.0,65796.0,1.063891]
[1722402544042,0.1360122,65807.0,65802.0,0.759855]
[1722402544211,0.10459604,65803.0,65802.0,0.759855]
[1722402545884,0.10459604,65803.0,65802.0,0.455913]
[1722402546293,0.09711439,65803.0,65802.0,0.455913]
[1722402546537,0.10111439,65803.0,65802.0,0.474913]
[1722402547463,0.21202113,65803.0,65802.0,0.474913]
[1722402549382,0.21002113,65803.0,65802.0,0.474913]
[1722402550617,0.21025278,65803.0,65802.0,0.474913]
[1722402551061,0.21011335,65803.0,65802.0,0.474913]
[1722402551289,0.21011335,65803.0,65802.0,0.778855]
[1722402551507,0.21011335,65803.0,65802.0,1.23343004]
[1722402551508,0.10014076,65803.0,65802.0,1.23343004]
[1722402551713,0.05482074,65803.0,65802.0,1.23343004]
[1722402551934,0.002,65803.0,65802.0,1.23343004]
[1722402552439,0.06124106,65807.0,65806.0,0.759807]
[1722402552623,0.06873413,65807.0,65806.0,0.759807]
[1722402552821,0.06874225,65807.0,65806.0,0.759807]
[1722402553024,0.06874179,65807.0,65806.0,0.759807]
[1722402553412,0.02340746,65807.0,65806.0,0.759807]
[1722402553614,0.02340746,65807.0,65806.0,0.455884]
[1722402554027,0.09239202,65807.0,65806.0,0.465884]
[1722402554200,0.08689895,65807.0,65806.0,0.465884]
[1722402554434,0.0929255,65807.0,65806.0,0.465884]
[1722402554645,0.0929255,65807.0,65806.0,0.769807]
[1722402555240,0.07701111,65807.0,65806.0,0.769807]
[1722402555469,0.07701111,65807.0,65806.0,0.780807]
[1722402555643,0.00902655,65807.0,65806.0,0.780807]
[1722402556848,0.02494094,65807.0,65806.0,0.780807]
[1722402557260,0.02694094,65807.0,65806.0,0.780807]
[1722402557483,0.02694094,65807.0,65806.0,0.476884]
[1722402557683,0.09490835,65807.0,65806.0,0.476884]
[1722402557913,0.02494094,65807.0,65806.0,0.780807]
[1722402558562,0.02494094,65807.0,65806.0,0.476884]
[1722402558563,0.02694094,65807.0,65806.0,0.476884]
[1722402558977,0.02494094,65807.0,65806.0,0.780807]
[1722402559813,0.02694094,65807.0,65806.0,0.780807]
[1722402560207,0.02694094,65807.0,65806.0,0.476884]
[1722402561000,0.01891439,65807.0,65806.0,0.780807]
[1722402561219,0.02699395,65807.0,65806.0,0.476884]
[1722402561422,0.01891439,65807.0,65806.0,0.476884]
[1722402561636,0.17977863,65807.0,65806.0,0.476884]
[1722402562146,0.08919395,65807.0,65806.0,0.476884]
[1722402562760,0.17978021,65807.0,65806.0,0.476884]
[1722402562971,0.17978021,65807.0,65806.0,0.780807]
[1722402562972,0.08919395,65807.0,65806.0,0.780807]
[1722402563380,0.15513465,65807.0,65806.0,0.780807]
[1722402563803,0.08719395,65807.0,65806.0,0.780807]
[1722402564018,0.15513995,65807.0,65806.0,0.780807]
[1722402564225,0.08486039,65807.0,65806.0,0.780807]
[1722402564432,0.09293995,65807.0,65806.0,0.780807]
[1722402564640,0.09493995,65807.0,65806.0,0.780807]
[1722402565290,0.09293995,65807.0,65806.0,0.780807]
[1722402565494,0.09293995,65807.0,65806.0,1.08473]
[1722402565495,0.00907956,65807.0,65806.0,1.08473]
[1722402565696,0.02499395,65807.0,65806.0,1.08473]
[1722402566321,0.02399395,65807.0,65806.0,1.06373]
[1722402566522,0.02499395,65807.0,65806.0,1.07773]
[1722402566726,0.02499395,65807.0,65806.0,0.773807]
[1722402567309,0.01691439,65807.0,65806.0,0.773807]
[1722402567730,0.02600296,65807.0,65806.0,0.787807]
[1722402568150,0.08840296,65807.0,65806.0,0.483884]
[1722402568354,0.15835776,65807.0,65806.0,0.483884]
[1722402570502,0.09040296,65807.0,65806.0,0.483884]
[1722402570644,0.09040296,65807.0,65806.0,0.787807]
[1722402571954,0.09040296,65807.0,65806.0,0.483884]
[1722402573518,0.09040296,65807.0,65806.0,0.787807]
[1722402573728,0.02800296,65807.0,65806.0,0.787807]
[1722402574129,0.02800296,65807.0,65806.0,0.483884]
[1722402575159,0.11600296,65807.0,65806.0,0.483884]
[1722402575702,0.11600296,65807.0,65806.0,0.179961]
[1722402576128,0.26120296,65807.0,65806.0,0.179961]
[1722402577542,0.35184827,65807.0,65806.0,0.179961]
[1722402578350,0.35184827,65807.0,65806.0,0.483884]
[1722402579278,0.35184827,65807.0,65806.0,0.179961]
[1722402580040,0.50380727,65807.0,65806.0,0.028]
[1722402580286,1.33696236,65807.0,65806.0,0.028]
[1722402580450,1.78955475,65807.0,65806.0,0.028]
[1722402580813,1.78955475,65807.0,65806.0,0.00416]
[1722402581025,0.01791439,65791.0,65790.0,0.00083]
[1722402581265,0.24941439,65791.0,65790.0,0.00083]
[1722402581689,0.25753353,65791.0,65790.0,0.00083]
[1722402582322,0.34965418,65791.0,65790.0,0.00083]
[1722402582547,0.25902806,65791.0,65790.0,0.00083]
[1722402582780,0.25902806,65791.0,65790.0,0.01283]
[1722402582781,0.27408469,65791.0,65790.0,0.01283]
[1722402582994,0.10433353,65791.0,65790.0,0.01283]
[1722402583197,0.10433353,65791.0,65790.0,0.164828]
[1722402583408,0.19496351,65791.0,65790.0,0.01283]
[1722402583626,0.18882973,65791.0,65790.0,0.01283]
[1722402583849,0.19694829,65791.0,65790.0,0.01283]
[1722402584071,0.19794829,65791.0,65790.0,0.02283]
[1722402584280,0.10733295,65791.0,65790.0,0.02283]
[1722402585762,0.10733295,65791.0,65790.0,0.174828]
[1722402585966,0.17327974,65791.0,65790.0,0.174828]
[1722402586171,0.10533295,65791.0,65790.0,0.02283]
[1722402587416,0.152628,65791.0,65790.0,0.02283]
[1722402587824,0.10733295,65791.0,65790.0,0.02283]
[1722402589042,0.24128085,65791.0,65790.0,0.02283]
[1722402589239,0.17482748,65791.0,65790.0,0.02283]
[1722402589396,0.24277538,65791.0,65790.0,0.02283]
[1722402589607,0.17482748,65791.0,65790.0,0.02283]
[1722402590006,0.26542468,65791.0,65790.0,0.02283]
[1722402590216,0.17482748,65791.0,65790.0,0.02283]
[1722402591059,0.28806768,65791.0,65790.0,0.02283]
[1722402591256,0.27775822,65791.0,65790.0,0.02283]
[1722402591462,0.42975422,65791.0,65790.0,0.02283]
[1722402592318,0.73374622,65791.0,65790.0,0.02283]
[1722402592702,0.42975422,65791.0,65790.0,0.02283]
[1722402593423,0.73319869,65791.0,65790.0,0.02283]
[1722402593999,1.03719069,65791.0,65790.0,0.02283]
[1722402596398,1.1502625,65791.0,65790.0,0.02283]
[1722402596838,1.15047935,65791.0,65790.0,0.02283]
[1722402597269,1.03740748,65791.0,65790.0,0.02283]
[1722402597477,1.1881018,65791.0,65790.0,0.02283]
[1722402597679,1.49203252,65791.0,65790.0,0.02283]
[1722402600012,1.38943252,65791.0,65790.0,0.02283]
[1722402600251,1.49239661,65791.0,65790.0,0.02283]
[1722402600667,1.49239467,65791.0,65790.0,0.02283]
[1722402601286,1.50239467,65791.0,65790.0,0.02283]
[1722402601491,1.5938627,65791.0,65790.0,0.02283]
[1722402601699,1.52239467,65791.0,65790.0,0.02283]
[1722402601906,1.50239467,65791.0,65790.0,0.02283]
[1722402602323,1.39943252,65791.0,65790.0,0.02283]
[1722402602546,1.52205416,65791.0,65790.0,0.01083]
[1722402602772,1.52205416,65791.0,65790.0,0.01183]
[1722402602773,2.13704048,65791.0,65790.0,0.01183]
[1722402602995,2.13704048,65791.0,65784.0,0.00083]
[1722402602996,0.04591439,65785.0,65784.0,0.00083]
[1722402603239,1.80741196,65785.0,65784.0,0.00083]
[1722402603445,2.47700892,65785.0,65784.0,0.00083]
[1722402603662,2.47525259,65785.0,65784.0,0.00083]
[1722402603882,2.62770324,65785.0,65784.0,0.00083]
[1722402604351,2.53960324,65785.0,65784.0,0.00083]
[1722402604568,2.47525259,65785.0,65784.0,0.00083]
[1722402605419,2.37115669,65785.0,65784.0,0.00683]
[1722402605643,2.60920349,65785.0,65784.0,0.00783]
[1722402608619,2.37115669,65785.0,65784.0,0.00783]
[1722402608826,2.60907261,65785.0,65784.0,0.00783]
[1722402608950,2.61814164,65785.0,65784.0,0.00783]
[1722402611692,2.29262711,65785.0,65784.0,0.00783]
[1722402611981,2.38270571,65785.0,65784.0,0.00783]
[1722402612540,1.12666116,65785.0,65784.0,0.00783]
[1722402612747,0.87625947,65785.0,65784.0,0.00783]
[1722402612960,0.57223947,65785.0,65784.0,0.00783]
[1722402613352,0.88660867,65785.0,65784.0,0.00783]
[1722402613518,1.19062867,65785.0,65784.0,0.00783]
[1722402613918,1.18062867,65785.0,65784.0,0.00783]
[1722402614587,1.18090149,65785.0,65784.0,0.00783]
[1722402614929,0.72624845,65785.0,65784.0,0.00783]
[1722402615142,0.42222845,65785.0,65784.0,0.00783]
[1722402615353,0.20678534,65785.0,65784.0,0.00783]
[1722402615566,0.20827987,65785.0,65784.0,0.00783]
[1722402615771,0.36028987,65785.0,65784.0,0.00783]
[1722402615981,0.66430987,65785.0,65784.0,0.00783]
[1722402616386,0.36028987,65785.0,65784.0,0.00783]
[1722402616502,0.66430987,65785.0,65784.0,0.00783]
[1722402616711,0.36028987,65785.0,65784.0,0.00783]
[1722402617372,0.66430987,65785.0,65784.0,0.00783]
[1722402617991,0.20827987,65785.0,65784.0,0.00783]
[1722402618476,0.2083704,65785.0,65784.0,0.00783]
[1722402619962,0.1317704,65785.0,65784.0,0.06903]
[1722402620112,0.12827587,65785.0,65784.0,0.525067]
[1722402620315,0.0267448,65785.0,65784.0,0.06903]
[1722402620516,0.01891439,65785.0,65784.0,0.221042]
[1722402620914,0.01691439,65785.0,65784.0,0.525067]
[1722402621120,0.00994686,65785.0,65784.0,0.215042]
[1722402621372,0.01674439,65790.0,65789.0,0.476403]
[1722402621588,0.01674439,65790.0,65789.0,0.539503]
[1722402621797,0.01674439,65790.0,65789.0,0.235501]
[1722402621932,0.01874439,65790.0,65789.0,0.235501]
[1722402622149,0.01874439,65790.0,65789.0,0.539503]
[1722402622559,0.01874439,65790.0,65789.0,0.235501]
[1722402622903,0.00083,65790.0,65789.0,1.29814004]
[1722402623330,0.00083,65790.0,65789.0,1.30814004]
[1722402623331,0.00183,65790.0,65789.0,1.30814004]
[1722402623534,0.01674439,65790.0,65789.0,1.29814004]
[1722402623759,0.01774439,65790.0,65789.0,1.30814004]
[1722402624173,0.00183,65790.0,65789.0,1.30814004]
[1722402624382,0.00183,65790.0,65789.0,1.31814004]
[1722402624383,0.00283,65790.0,65789.0,1.31814004]
[1722402624595,0.00383,65790.0,65789.0,1.32914004]
[1722402626407,0.00979753,65790.0,65789.0,1.32914004]
[1722402626605,0.01974439,65790.0,65789.0,1.32914004]
[1722402626827,0.00383,65790.0,65789.0,1.32914004]
[1722402627752,0.01377686,65790.0,65789.0,1.32914004]
[1722402627873,0.00383,65790.0,65789.0,1.32914004]
[1722402628074,0.01974439,65790.0,65789.0,1.32914004]
[1722402629936,0.01974439,65790.0,65789.0,1.3381834]
[1722402630083,0.02174439,65790.0,65789.0,1.3381834]
[1722402630285,0.01974439,65790.0,65789.0,1.3381834]
[1722402630859,0.00383,65790.0,65789.0,1.3381834]
[1722402632105,0.01974439,65790.0,65789.0,1.3381834]
[1722402633110,0.01974439,65790.0,65789.0,1.3177834]
[1722402635018,0.01974439,65790.0,65789.0,1.0137814]
[1722402635226,0.18564439,65790.0,65789.0,0.031]
[1722402635422,0.19336664,65790.0,65789.0,0.031]
[1722402635975,0.19492084,65790.0,65789.0,0.031]
[1722402636184,0.19392084,65790.0,65789.0,0.02]
[1722402636569,0.64985617,65790.0,65789.0,0.02]
[1722402636695,0.01791439,65785.0,65784.0,0.00083]
[1722402637122,0.02563569,65785.0,65784.0,0.00083]
[1722402639201,0.02563569,65785.0,65784.0,0.00483]
[1722402639202,0.02663569,65785.0,65784.0,0.00483]
[1722402639408,0.17183569,65785.0,65784.0,0.00483]
[1722402639830,0.17283569,65785.0,65784.0,0.01383]
[1722402643077,0.62886569,65785.0,65784.0,0.01383]
[1722402643288,1.63908226,65785.0,65784.0,0.01383]
[1722402643480,1.89006581,65785.0,65784.0,0.01383]
[1722402643703,1.93565344,65785.0,65784.0,0.01383]
[1722402644077,1.73852387,65785.0,65784.0,0.01383]
[1722402644278,1.82173827,65785.0,65784.0,0.00983]
[1722402644486,1.84273827,65785.0,65784.0,0.00983]
[1722402644692,1.73852387,65785.0,65784.0,0.00983]